[Event "Czech Extraliga 2024-25"]
[Site "Czechia"]
[Date "2024.11.03"]
[Round "2.5"]
[White "Haba, Petr"]
[Black "Bernasek, Jan"]
[Result "1/2-1/2"]
[ECO "E90"]
[WhiteElo "2425"]
[BlackElo "2496"]
[Annotator "TA"]
[PlyCount "92"]
[EventDate "2024.09.12"]
[EventType "team-tourn"]
[EventCountry "CZE"]
[SourceTitle "playchess.com"]
[Source "ChessBase"]
[SourceQuality "1"]
[TimeControl "40/5400+30:1800+30"]

{[%evp 20,92,71,71,78,74,96,88,87,91,85,0,0,0,0,0,-8,-3,-6,-14,-8,-6,-12,0,-7,-6,-14,-22,-16,-1,0,0,0,0,0,-14,0,-66,-56,-74,-65,-86,-34,-91,-97,-134,-116,-127,-101,-125,-37,-55,-56,-54,-62,-81,-5,-93,0,-56,0,-18,0,-57,0,0,0,0,0,0,0,0,0,0,0]} 1. d4 {[%emt 0:00:12]} Nf6 {[%emt 0:00:20]} 2. c4 {[%emt 0:00:12]} g6 {[%emt 0:00:13]} 3. Nc3 {[%emt 0:00:24]} Bg7 {[%emt 0:00:07]} 4. e4 {[%emt 0:00:19]} d6 {[%emt 0:00:05]} 5. Nf3 {[%emt 0:00:19]} O-O {[%emt 0:00:57]} 6. h3 {[%emt 0:00:26]} e5 {[%emt 0:01:34]} 7. d5 {[%emt 0:00:26]} Na6 {[%emt 0:02:24]} 8. Bg5 {[%emt 0:00:43]} Qe8 {[%emt 0:03:06]} 9. g4 {[%emt 0:01:44]} Nc5 {[%emt 0:06:49]} 10. Nd2 {[%emt 0:01:41]} a5 {[%emt 0:00:34]} 11. Be2 {[%emt 0:01:23]} Nfd7 {[%emt 0:11:18]} 12. Qc2 {[%emt 0:16:20]} f5 {[%emt 0:04:43]} 13. gxf5 {[%emt 0:31:32]} gxf5 {[%emt 0:01:46] White is better.} 14. Rg1 {[%emt 0:00:08] Black must now prevent Bh6.} Kh8 {[%emt 0:01:12]} 15. Be3 {[%emt 0:01:50]} (15. exf5 $16 Nb8 16. Bg4) 15... f4 $11 {[%emt 0:07:35]} 16. Bxc5 {[%emt 0:00:14]} Nxc5 {[%emt 0:00:03]} 17. Bg4 {[%emt 0:01:50]} f3 {[%emt 0:09:55]} 18. O-O-O {[%emt 0:00:31]} Bh6 {[%emt 0:03:58]} 19. Kb1 {[%emt 0:00:26]} Bxd2 {[%emt 0:06:35]} 20. Qxd2 {[%emt 0:00:05]} Rf4 {[%emt 0:00:06]} 21. Qe3 {[%emt 0:16:31]} Bxg4 {[%emt 0:07:06]} 22. Rxg4 {[%emt 0:05:10]} Rxg4 {[%emt 0:01:37]} 23. hxg4 {[%emt 0:00:01]} Qf7 {[%emt 0:00:09]} 24. Rh1 {[%emt 0:05:26]} Rf8 {[%emt 0:10:34]} 25. Qh6 {[%emt 0:05:09] Wards off Qg6} Qg7 {[%emt 0:04:28] ...Qxh6 is the strong threat.} 26. Qh5 {[%emt 0:01:38]} Nd3 {[%emt 0:02:06]} 27. g5 {[%emt 0:00:31]} Nf4 {[%emt 0:03:29]} (27... Nxf2 $5 28. Rf1 $8 Nd3 29. Rxf3 Nf4 $15) 28. Qxf3 {[%emt 0:00:45]} (28. Qh4 $11) 28... Qxg5 $15 {[%emt 0:00:08]} 29. Nb5 {[%emt 0:01:35]} Rf7 {[%emt 0:02:53]} 30. Nc3 {[%emt 0:00:02]} Rf6 {[%emt 0:02:16]} (30... Qg8 $17 {[%cal Of4d5]} 31. Qg3 Qxg3 32. fxg3 Nd3) 31. Nd1 {[%emt 0:01:23]} (31. Nb5 $15) 31... Qg6 $17 {[%emt 0:03:12][%cal Of4d5]} 32. Qe3 {[%emt 0:00:05]} Qg2 {[%emt 0:00:49]} 33. Re1 {[%emt 0:00:33] [#]} b6 $1 {[%emt 0:00:33]} 34. Qc3 {[%emt 0:04:38]} Nh3 {[%emt 0:03:23]} (34... Rf7 $17 35. a3 Qh3) 35. c5 $1 $15 {[%emt 0:00:21]} bxc5 {[%emt 0:00:29]} (35... Nxf2 36. cxd6 cxd6 37. Nxf2 Qxf2 38. a3 $17) 36. Qxa5 {[%emt 0:00:10]} Nxf2 {[%emt 0:01:07]} 37. Nxf2 {[%emt 0:01:05]} Rxf2 {[%emt 0:00:16][%mdl 4096] Endgame. KQR-KQR} (37... Qxf2 $17 38. Rc1 Qg2 39. Qxc7 Qxe4+ 40. Ka1 Qg6 (40... Qxd5 41. Qd8+ Kg7 42. a4 $15)) 38. Qb5 {[%emt 0:00:17] [#]} (38. Qa8+ $1 $11 {keeps the balance.} Kg7 39. Qb8) 38... Qg3 {[%emt 0:00:52]} (38... Rf8 $1 $17 {Threatens to win with ...h5.} 39. a4 Qg3) 39. Rh1 {[%emt 0:01:56]} ({Better is} 39. Rf1 $11) 39... Qg6 {[%emt 0:00:06]} (39... Rf8 $15) 40. Re1 {[%emt 0:01:12]} Rf4 {[%emt 0:01:01]} 41. Qd3 {[%emt 0:17:42]} (41. Qb8+ $11 Qg8 42. Qxc7) 41... Qe8 {[%emt 0:04:13]} ({Black should play} 41... Qg2 $15) 42. Qh3 $11 {[%emt 0:01:10] The position is equal.} Rf8 {[%emt 0:03:47]} 43. Rg1 {[%emt 0:00:58]} Rg8 {[%emt 0:07:03]} 44. Rxg8+ {[%emt 0:02:09]} Kxg8 {[%emt 0:00:12]} 45. a4 {[%emt 0:01:28]} Qxa4 {[%emt 0:03:14]} 46. Qc8+ {[%emt 0:00:13]} Kg7 {[%emt 0:01:32] Weighted Error Value: White=0.22 (precise) /Black=0.19 (very precise) .  Mistake:       	White=6     	Black=6      Inaccurate:     	White=1     	---        OK:         	White=13    	Black=14     Best:        	White=3     	Black=2      Strong:       	White=1     	Black=1} 1/2-1/2

[Event "Czech Extraliga 2024-25"]
[Site "Czechia"]
[Date "2024.11.03"]
[Round "2.5"]
[White "Vyprachticky, David"]
[Black "Polak, Tomas"]
[Result "0-1"]
[ECO "C02"]
[WhiteElo "2356"]
[BlackElo "2470"]
[Annotator "TA"]
[PlyCount "78"]
[EventDate "2024.09.12"]
[EventType "team-tourn"]
[EventCountry "CZE"]
[SourceTitle "playchess.com"]
[Source "ChessBase"]
[SourceQuality "1"]
[TimeControl "40/5400+30:1800+30"]

{[%evp 14,78,44,0,69,80,66,32,50,30,16,25,76,58,62,58,80,77,69,62,94,88,94,91,86,83,79,72,83,67,69,75,72,87,87,77,74,25,18,0,2,0,0,0,0,0,0,0,0,0,0,-52,-57,-123,-95,-258,-247,-433,-439,-630,-616,-29983,-29984,-29984,-29984,-29990,-29975]} 1. e4 {[%emt 0:00:09]} e6 {[%emt 0:00:21]} 2. d4 {[%emt 0:01:38]} d5 {[%emt 0:00:06]} 3. e5 {[%emt 0:00:54]} c5 {[%emt 0:00:11]} 4. c3 {[%emt 0:00:05]} Nc6 {[%emt 0:00:15]} 5. Nf3 {[%emt 0:00:06]} Qb6 {[%emt 0:00:22]} 6. a3 {[%emt 0:00:13]} a5 {[%emt 0:01:00]} 7. Bd3 {[%emt 0:04:18]} Bd7 {[%emt 0:03:51]} 8. O-O {[%emt 0:03:28]} Nh6 {[%emt 0:04:17]} (8... cxd4 $11 9. cxd4 Nxd4) 9. dxc5 $14 {[%emt 0:07:33]} Bxc5 {[%emt 0:01:14]} 10. Nbd2 {[%emt 0:01:47]} Ng4 {[%emt 0:08:48][%cal Rg4f2] White is slightly better.} 11. Qe2 {[%emt 0:00:34]} f6 {[%emt 0:02:42]} 12. exf6 {[%emt 0:03:06]} Nxf6 {[%emt 0:00:36]} (12... gxf6 $11 {remains equal.} 13. h3 Nge5) 13. b4 $16 {[%emt 0:03:02]} axb4 {[%emt 0:11:29]} 14. cxb4 {[%emt 0:02:59]} Nd4 {[%emt 0:06:35]} 15. Qd1 {[%emt 0:07:29]} Bd6 {[%emt 0:02:08]} 16. Bb2 {[%emt 0:01:34]} Nxf3+ {[%emt 0:05:03]} 17. Nxf3 {[%emt 0:00:17]} O-O {[%emt 0:00:31]} 18. Qe2 {[%emt 0:07:02]} Rae8 {[%emt 0:08:45][%cal Oe6e5]} 19. Ne5 {[%emt 0:01:24] [#] Threatens to win with Nxd7.} Ba4 {[%emt 0:02:48]} 20. Kh1 {[%emt 0:08:04]} Re7 {[%emt 0:05:29]} 21. Rac1 {[%emt 0:04:36]} Be8 {[%emt 0:03:11]} 22. Rc8 {[%emt 0:01:36]} Bh5 {[%emt 0:05:11]} 23. Rxf8+ {[%emt 0:00:15]} Kxf8 {[%emt 0:00:05]} 24. f3 {[%emt 0:00:33]} Kg8 {[%emt 0:02:49]} 25. g4 {[%emt 0:02:15]} ({Better is} 25. Rc1 $16 {Hoping for Rc8+.} Rc7 26. Re1) 25... Be8 $11 {[%emt 0:00:09]} 26. g5 {[%emt 0:01:49]} Bxe5 {[%emt 0:06:08]} 27. Qxe5 {[%emt 0:03:52]} Nd7 {[%emt 0:01:08]} 28. Qd4 {[%emt 0:01:15]} Bg6 {[%emt 0:01:17]} 29. Bxg6 {[%emt 0:01:39]} hxg6 {[%emt 0:00:15]} 30. Rc1 {[%emt 0:00:29] Rc8+ would kill now.} Qb5 {[%emt 0:06:29]} 31. Rc8+ {[%emt 0:08:13]} Nf8 {[%emt 0:00:11]} 32. Qd1 {[%emt 0:00:12] Prevents Qf1+.} (32. Kg2 $11) 32... Qd7 $1 $15 {[%emt 0:03:49]} 33. Rc2 {[%emt 0:05:45]} (33. Ra8 $15) 33... e5 $17 {[%emt 0:02:32]} 34. Rc5 $2 {[%emt 0:00:57] Loses the game.} (34. Qd3 $17) 34... d4 $19 {[%emt 0:00:28]} 35. Qb3+ $2 {[%emt 0:03:55]} (35. Bc1) 35... Kh7 {[%emt 0:00:31] aiming for ...Qh3.} 36. Qd5 {[%emt 0:01:50]} (36. Qd1 $142) 36... Qh3 {[%emt 0:00:56]} 37. Kg1 {[%emt 0:00:19] [#] Wards off Qf1+} e4 $1 {[%emt 0:01:51][%mdl 512] Black mates.} 38. fxe4 {[%emt 0:01:00]} (38. f4 Qe3+) 38... Qe3+ {[%emt 0:01:02]} 39. Kg2 {[%emt 0:02:07]} Rxe4 {[%emt 0:00:54] Weighted Error Value: White=0.39/Black=0.08 (flawless) .  Loses game:     	White=1     	---        Mistake:       	White=5     	Black=1      Inaccurate:     	White=2     	Black=1      OK:         	White=11    	Black=11     Best:        	White=3     	Black=6      Strong:       	---       	Black=1} 0-1

[Event "Czech Extraliga 2024-25"]
[Site "Czechia"]
[Date "2024.11.03"]
[Round "2.5"]
[White "Seidl, Jan"]
[Black "Rubes, Jan"]
[Result "1/2-1/2"]
[ECO "A30"]
[WhiteElo "2247"]
[BlackElo "2446"]
[Annotator "TA"]
[PlyCount "84"]
[EventDate "2024.09.12"]
[EventType "team-tourn"]
[EventCountry "CZE"]
[SourceTitle "playchess.com"]
[Source "ChessBase"]
[SourceQuality "1"]
[TimeControl "40/5400+30:1800+30"]

{[%evp 25,84,40,45,20,27,29,23,17,44,28,37,14,10,14,26,-31,-26,-81,-78,-87,-69,-97,-79,-111,-89,-114,-99,-151,27,11,47,0,0,0,0,0,63,58,46,0,0,0,0,0,56,0,0,0,0,0,0,0,0,0,0,0,0,0,0,0,0]} 1. Nf3 {[%emt 0:03:41]} Nf6 {[%emt 0:00:51]} 2. g3 {[%emt 0:00:08]} b6 {[%emt 0:02:21]} 3. Bg2 {[%emt 0:00:13]} Bb7 {[%emt 0:00:04]} 4. O-O {[%emt 0:01:26]} e6 {[%emt 0:00:51]} 5. c4 {[%emt 0:01:28]} Be7 {[%emt 0:06:02]} 6. b3 {[%emt 0:04:13]} O-O {[%emt 0:00:52]} 7. Bb2 {[%emt 0:00:07]} c5 {[%emt 0:01:13]} 8. Nc3 {[%emt 0:02:16]} d6 {[%emt 0:09:08]} 9. d4 {[%emt 0:02:35]} cxd4 {[%emt 0:00:12]} 10. Qxd4 {[%emt 0:00:14]} a6 {[%emt 0:00:57]} 11. Rfd1 {[%emt 0:13:32]} Nbd7 {[%emt 0:06:44]} 12. e4 {[%emt 0:02:26]} Qc7 {[%emt 0:00:17]} 13. Qe3 {[%emt 0:03:26]} Rfe8 {[%emt 0:02:57]} 14. h3 {[%emt 0:05:18]} Rac8 {[%emt 0:04:57]} 15. Rac1 {[%emt 0:04:29]} Qb8 {[%emt 0:01:11]} 16. Nd4 {[%emt 0:00:51] White has an edge.} g6 {[%emt 0:03:33]} 17. Re1 {[%emt 0:05:04]} Ba8 {[%emt 0:02:46]} 18. Kh2 {[%emt 0:00:54]} Bf8 {[%emt 0:06:07]} 19. Qd2 {[%emt 0:00:59]} h5 {[%emt 0:03:19]} 20. f4 {[%emt 0:02:47]} (20. Kg1 $11) 20... Bh6 {[%emt 0:05:23][%cal Oh5h4]} 21. Nf3 {[%emt 0:00:09]} (21. Rcd1 $11) 21... b5 $17 {[%emt 0:02:40]} 22. cxb5 {[%emt 0:00:07]} axb5 {[%emt 0:00:05] aiming for ...b4.} 23. Ng5 {[%emt 0:00:07]} b4 {[%emt 0:04:38]} 24. Na4 {[%emt 0:00:06]} Rxc1 {[%emt 0:00:28]} 25. Bxc1 {[%emt 0:04:53]} e5 {[%emt 0:04:13]} 26. Qf2 {[%emt 0:02:52]} (26. Qd3 $142) 26... Bg7 $2 {[%emt 0:03:42]} (26... exf4 $17 27. gxf4 d5 (27... Bxg5 $2 28. fxg5 Nxe4 29. Qf4 $19)) 27. f5 $11 {[%emt 0:04:00]} Bc6 {[%emt 0:01:29]} 28. Bf1 {[%emt 0:00:43]} (28. fxg6 $14 fxg6 29. Nb2) 28... d5 {[%emt 0:04:04]} 29. exd5 {[%emt 0:00:27]} Bxd5 {[%emt 0:00:07]} 30. Rd1 {[%emt 0:01:16] [#] fxg6 is the strong threat.} Re7 {[%emt 0:12:17]} (30... Rf8 $11) 31. fxg6 $14 {[%emt 0:05:34] White is more active.} fxg6 {[%emt 0:00:04]} 32. Nc5 {[%emt 0:05:18]} (32. Nb2 $14) 32... Nxc5 $11 {[%emt 0:04:43]} 33. Qxc5 {[%emt 0:00:06]} Rc7 {[%emt 0:00:11]} 34. Qf2 {[%emt 0:01:22]} h4 {[%emt 0:01:53]} 35. g4 {[%emt 0:05:48]} (35. gxh4 $14 Qc8 36. Be3) 35... Rxc1 {[%emt 0:05:02] The position is equal.} 36. Rxc1 {[%emt 0:00:23][%cal Of1c4] [#] Strongly threatening Bc4!} e4+ {[%emt 0:00:04]} 37. Kg1 {[%emt 0:00:04][%cal Of1c4] Bc4! would now be deadly.} Qe5 $1 {[%emt 0:01:20]} 38. Rc8+ {[%emt 0:01:26]} (38. Qe3 $5 Bf8 $8 39. Rd1 $11) 38... Bf8 {[%emt 0:00:13] A strong pair of Bishops.} 39. Qc5 {[%emt 0:09:04][%csl Gc8][%cal Rc5f8]} Qg3+ {[%emt 0:01:21]} 40. Bg2 {[%emt 0:00:05][%csl Gc8][%cal Rc5f8]} Qe1+ {[%emt 0:00:02]} 41. Kh2 {[%emt 0:30:04][%csl Gc8][%cal Rc5f8]} (41. Bf1 $5 Qg3+ $8 42. Bg2 Qe1+ 43. Kh2 Qg3+ 44. Kh1 Qe1+ 45. Qg1 $11) 41... Qg3+ {[%emt 0:30:05]} 42. Kg1 {[%emt 0:01:35][%csl Gc8][%cal Rc5f8]} (42. Kh1 $5 Qe1+ $8 43. Kh2 Qg3+ 44. Kh1 Qe1+ 45. Kh2 $11) 42... Qe1+ {[%emt 0:00:04] Weighted Error Value: White=0.17 (very precise) /Black=0.23 (precise) .  Mistake:       	White=6     	Black=3      Inaccurate:     	White=2     	Black=2      OK:         	White=3     	Black=7      Best:        	White=3     	Black=8      Strong:       	---       	Black=1} 1/2-1/2

[Event "Czech Extraliga 2024-25"]
[Site "Czechia"]
[Date "2024.11.03"]
[Round "2.6"]
[White "Bartel, Mateusz"]
[Black "Piesik, Piotr"]
[Result "1-0"]
[ECO "C42"]
[WhiteElo "2613"]
[BlackElo "2421"]
[Annotator "TA"]
[PlyCount "55"]
[EventDate "2024.09.12"]
[EventType "team-tourn"]
[EventCountry "CZE"]
[SourceTitle "playchess.com"]
[Source "ChessBase"]
[SourceQuality "1"]
[TimeControl "40/5400+30:1800+30"]

{[%evp 9,55,-26,-8,-29,0,0,2,0,29,23,11,8,34,12,46,49,51,33,52,38,108,71,159,111,133,148,180,185,180,189,195,199,198,192,189,183,400,406,488,492,485,506,588,440,685,593,965,951]} 1. e4 {[%emt 0:00:03]} e5 {[%emt 0:00:24]} 2. Nc3 {[%emt 0:00:35]} Nf6 {[%emt 0:00:30]} 3. Nf3 {[%emt 0:00:08]} Bb4 {[%emt 0:00:53]} 4. d3 {[%emt 0:01:22]} O-O {[%emt 0:06:47]} 5. Bd2 {[%emt 0:07:38]} d6 {[%emt 0:04:46]} 6. g3 {[%emt 0:01:02]} c5 {[%emt 0:13:13]} 7. Bg2 {[%emt 0:00:21]} Nc6 {[%emt 0:00:04]} 8. O-O {[%emt 0:00:46] The position is equal.} Nd4 {[%emt 0:12:35]} 9. Bg5 {[%emt 0:08:22]} Bxc3 {[%emt 0:10:34]} 10. bxc3 {[%emt 0:00:12]} Ne6 {[%emt 0:00:03]} 11. Bd2 {[%emt 0:03:37]} b5 {[%emt 0:04:09][%cal Bb7b5,Bb5a4][%mdl 32]} 12. a4 {[%emt 0:07:26]} bxa4 {[%emt 0:04:15]} 13. Nh4 {[%emt 0:00:48][%cal Bf3h4,Bh4f5,Bf5e7,Be7d5][%mdl 32]} c4 {[%emt 0:11:45]} 14. d4 {[%emt 0:01:18]} (14. Rxa4 cxd3 15. cxd3 Nc5 $16) 14... Rb8 {[%emt 0:01:32]} ({Black should try} 14... Bb7 $14) 15. Nf5 {[%emt 0:08:59]} Qc7 {[%emt 0:09:18]} (15... Nc7 $142) 16. Re1 {[%emt 0:13:03]} (16. Rxa4 $142 a5 17. Qa1) 16... Re8 {[%emt 0:03:31]} 17. Rxa4 {[%emt 0:04:15] White is more active.} Bd7 {[%emt 0:01:02]} 18. Ra6 {[%emt 0:00:31]} Rb6 {[%emt 0:05:52]} 19. Qa1 {[%emt 0:00:20]} Ra8 {[%emt 0:00:28]} 20. Ne7+ {[%emt 0:08:28]} Kh8 {[%emt 0:00:04]} 21. Nd5 {[%emt 0:00:06]} Rxa6 {[%emt 0:01:48]} 22. Qxa6 {[%emt 0:00:05]} Qc8 {[%emt 0:01:02] [#]} (22... Qb8 23. Ra1 (23. Qxc4 a5 $16) 23... Qb2) 23. Qxd6 $18 {[%emt 0:00:48]} exd4 {[%emt 0:02:29]} 24. Nxf6 {[%emt 0:05:20] White is clearly winning.} gxf6 {[%emt 0:00:04]} 25. cxd4 {[%emt 0:00:09]} a5 {[%emt 0:01:44]} 26. Qe7 {[%emt 0:04:17]} c3 {[%emt 0:02:36]} (26... Kg8 $142 27. Qxf6 Qd8 28. Qxd8+ Nxd8) 27. Bh6 {[%emt 0:06:21]} Qd8 {[%emt 0:01:04]} 28. Qxf7 {[%emt 0:00:17] Weighted Error Value: White=0.24 (precise) /Black=0.52.  Mistake:       	White=1     	Black=4      Inaccurate:     	White=1     	Black=5      OK:         	White=11    	Black=4      Best:        	White=1     	Black=1} 1-0

[Event "Czech Extraliga 2024-25"]
[Site "Czechia"]
[Date "2024.11.03"]
[Round "2.6"]
[White "Jirovsky, Milos"]
[Black "Simacek, Pavel"]
[Result "1/2-1/2"]
[ECO "E14"]
[WhiteElo "2430"]
[BlackElo "2452"]
[Annotator "TA"]
[PlyCount "31"]
[EventDate "2024.09.12"]
[EventType "team-tourn"]
[EventCountry "CZE"]
[SourceTitle "playchess.com"]
[Source "ChessBase"]
[SourceQuality "1"]
[TimeControl "40/5400+30:1800+30"]

{[%evp 19,31,0,25,16,16,7,11,6,16,0,0,0,14,19]} 1. Nf3 {[%emt 0:00:03]} d5 {[%emt 0:00:18]} 2. d4 {[%emt 0:00:21]} Nf6 {[%emt 0:00:33]} 3. c4 {[%emt 0:00:43]} e6 {[%emt 0:00:48]} 4. e3 {[%emt 0:00:18]} Be7 {[%emt 0:06:20]} 5. b3 {[%emt 0:03:33]} O-O {[%emt 0:02:50]} 6. Bd3 {[%emt 0:02:04]} Nbd7 {[%emt 0:02:21]} 7. Nc3 {[%emt 0:04:40]} b6 {[%emt 0:02:44]} 8. cxd5 {[%emt 0:03:07]} exd5 {[%emt 0:00:34]} 9. O-O {[%emt 0:00:42]} Bb7 {[%emt 0:00:23]} 10. Bb2 {[%emt 0:00:24]} Ne4 {[%emt 0:10:32]} 11. Qe2 {[%emt 0:05:48]} Nxc3 {[%emt 0:05:35] The position is equal.} 12. Bxc3 {[%emt 0:00:09]} a5 {[%emt 0:00:24]} 13. Rac1 {[%emt 0:03:03]} Bd6 {[%emt 0:04:09]} 14. Rc2 {[%emt 0:07:40]} Qe7 {[%emt 0:20:01]} 15. Rfc1 {[%emt 0:01:47]} f5 {[%emt 0:09:18]} 16. Qe1 {[%emt 0:14:58] A rather calm draw.   Weighted Error Value: White=0.06 (flawless) /Black=0.08 (flawless) .  OK:         	White=2     	Black=3} 1/2-1/2

[Event "Czech Extraliga 2024-25"]
[Site "Czechia"]
[Date "2024.11.03"]
[Round "2.6"]
[White "Jurcik, Marian"]
[Black "Biolek, Richard Jr."]
[Result "1/2-1/2"]
[ECO "D07"]
[WhiteElo "2408"]
[BlackElo "2414"]
[Annotator "TA"]
[PlyCount "37"]
[EventDate "2024.09.12"]
[EventType "team-tourn"]
[EventCountry "CZE"]
[SourceTitle "playchess.com"]
[Source "ChessBase"]
[SourceQuality "1"]
[TimeControl "40/5400+30:1800+30"]

{[%evp 12,37,18,8,10,10,2,5,19,19,32,25,36,22,27,27,14,36,31,0,0,0,0,0,0,0,0,-16]} 1. d4 {[%emt 0:09:39]} d5 {[%emt 0:00:10]} 2. c4 {[%emt 0:01:12]} Nc6 {[%emt 0:00:05]} 3. Nc3 {[%emt 0:08:04]} Nf6 {[%emt 0:00:05]} 4. e3 {[%emt 0:11:45]} dxc4 {[%emt 0:22:36]} 5. Bxc4 {[%emt 0:01:09]} e5 {[%emt 0:00:02]} 6. Nf3 {[%emt 0:25:56]} exd4 {[%emt 0:02:05]} 7. exd4 {[%emt 0:00:14]} Bd6 {[%emt 0:00:09]} 8. Qe2+ {[%emt 0:06:58]} Qe7 {[%emt 0:03:24]} 9. Qxe7+ {[%emt 0:00:44]} Nxe7 {[%emt 0:05:38]} (9... Kxe7 {seems wilder.} 10. O-O Re8 11. Ng5 Nxd4 12. Bxf7 Rd8) 10. Bg5 {[%emt 0:04:02]} Bf5 {[%emt 0:11:28]} 11. O-O {[%emt 0:04:03][%cal Bh1f1,Bf1e1,Be1e3][%mdl 32]} Ne4 {[%emt 0:17:08]} 12. Bxe7 {[%emt 0:08:36]} Bxe7 {[%emt 0:00:04]} 13. Rfe1 {[%emt 0:00:22]} Nxc3 {[%emt 0:02:36]} 14. bxc3 {[%emt 0:00:01]} f6 {[%emt 0:06:16] Wards off Re5} 15. Nh4 {[%emt 0:05:32]} Bd7 {[%emt 0:02:16] The position is equal.} 16. Re3 {[%emt 0:07:44] [#] Rae1 would now be deadly.} Kd8 {[%emt 0:02:56]} 17. Be6 {[%emt 0:02:08]} g6 {[%emt 0:01:02] Dodges Nf5} 18. Rae1 {[%emt 0:00:29] aiming for Bxd7.} Bd6 {[%emt 0:21:30]} 19. Nf3 {[%emt 0:00:43] Weighted Error Value: White=0.04 (flawless) /Black=0.02 (flawless) .  Inaccurate:     	White=1     	---        OK:         	White=6     	Black=6} 1/2-1/2

[Event "Czech Extraliga 2024-25"]
[Site "Czechia"]
[Date "2024.11.03"]
[Round "2.6"]
[White "Kusa, Jakub"]
[Black "Cuhra, Martin"]
[Result "1/2-1/2"]
[ECO "A43"]
[WhiteElo "2401"]
[BlackElo "2277"]
[Annotator "RC"]
[PlyCount "97"]
[EventDate "2024.09.12"]
[EventType "team-tourn"]
[EventCountry "CZE"]
[SourceTitle "playchess.com"]
[Source "ChessBase"]
[SourceQuality "1"]
[TimeControl "40/5400+30:1800+30"]

1. d4 {[%emt 0:00:06]} Nf6 {[%emt 0:00:06]} 2. Nf3 {[%emt 0:00:22]} c5 {[%emt 0:00:11]} 3. d5 {[%emt 0:00:35]} b5 {[%emt 0:00:51]} 4. e4 {[%emt 0:00:09]} Nxe4 {[%emt 0:02:31]} 5. Bd3 {[%emt 0:00:10]} Nd6 {[%emt 0:02:23]} 6. Bf4 {[%emt 0:00:42]} Qb6 {[%emt 0:07:12]} 7. Nc3 {[%emt 0:00:31]} c4 {[%emt 0:06:24]} 8. Be2 {[%emt 0:00:10]} g6 {[%emt 0:04:02]} 9. Qd4 {[%emt 0:25:35]} Qxd4 {[%emt 0:05:36]} 10. Nxd4 {[%emt 0:00:09]} a6 {[%emt 0:00:12]} 11. Be5 {[%emt 0:01:06]} f6 {[%emt 0:03:34]} 12. Bxd6 {[%emt 0:01:24]} exd6 {[%emt 0:01:43]} 13. a4 {[%emt 0:00:27]} b4 {[%emt 0:01:46]} 14. Nd1 {[%emt 0:02:16]} a5 {[%emt 0:07:37]} 15. Ne3 {[%emt 0:01:15]} Na6 {[%emt 0:04:03]} 16. Nxc4 {[%emt 0:01:18]} Nc5 {[%emt 0:00:50]} 17. Nb5 {[%emt 0:02:59]} Kf7 {[%emt 0:05:55]} 18. Nbxd6+ {[%emt 0:02:22]} Bxd6 {[%emt 0:00:37]} 19. Nxd6+ {[%emt 0:00:09]} Ke7 {[%emt 0:00:33]} 20. Nb5 {[%emt 0:01:15]} Rb8 {[%emt 0:02:15]} 21. O-O {[%emt 0:09:55]} Ba6 {[%emt 0:03:11]} 22. d6+ {[%emt 0:00:38]} Kd8 {[%emt 0:02:04]} 23. b3 {[%emt 0:02:37]} Rb6 {[%emt 0:03:09]} 24. Rfd1 {[%emt 0:01:32]} Re8 {[%emt 0:01:01]} 25. Bc4 {[%emt 0:01:54]} Bxb5 {[%emt 0:06:34]} 26. axb5 {[%emt 0:00:28]} Nb7 {[%emt 0:00:21]} 27. Kf1 {[%emt 0:03:59]} Re5 {[%emt 0:02:35]} 28. Rd3 {[%emt 0:11:59]} Rc5 {[%emt 0:03:41]} 29. Rh3 {[%emt 0:02:15]} h5 {[%emt 0:08:12]} 30. g4 {[%emt 0:10:53]} Rxd6 {[%emt 0:02:27]} 31. gxh5 {[%emt 0:00:45]} Rxh5 {[%emt 0:00:58]} 32. Rxh5 {[%emt 0:01:43]} gxh5 {[%emt 0:00:01]} 33. Bd3 {[%emt 0:03:10]} Kc7 {[%emt 0:00:54]} 34. Re1 {[%emt 0:01:46]} Nc5 {[%emt 0:01:39]} 35. Bg6 {[%emt 0:01:06]} Rd4 {[%emt 0:00:42]} 36. Bxh5 {[%emt 0:03:48]} Rh4 {[%emt 0:00:19]} 37. Bf3 {[%emt 0:00:33]} Rxh2 {[%emt 0:00:18]} 38. Re8 {[%emt 0:00:56]} Kb6 {[%emt 0:02:42]} 39. Rb8+ {[%emt 0:01:01]} Kc7 {[%emt 0:01:00]} 40. Rf8 {[%emt 0:00:32]} Rh6 {[%emt 0:00:39]} 41. Rf7 {[%emt 0:08:37]} Kb6 {[%emt 0:03:14]} 42. Be2 {[%emt 0:01:31]} Kc7 {[%emt 0:05:07]} 43. Bg4 {[%emt 0:05:44]} Rh4 {[%emt 0:05:13]} 44. b6+ {[%emt 0:01:14]} Kxb6 {[%emt 0:01:01]} 45. Rxf6+ {[%emt 0:00:08]} Kc7 {[%emt 0:00:47]} 46. Rg6 {[%emt 0:02:01]} Rh7 {[%emt 0:03:59]} 47. Rg5 {[%emt 0:02:10]} Kb6 {[%emt 0:01:07]} 48. Rg6+ {[%emt 0:00:27]} Kc7 {[%emt 0:00:07]} 49. Rg5 {[%emt 0:00:40]} 1/2-1/2